fUSD/lending_fUSD_20260616
["ID","MTS","AMOUNT","RATE_DAILY","PERIOD"]
[425178939,1781563850000,-8504.65956972,0.000193,2]
[425178914,1781563850000,-151.0,0.00019178,2]
[425178915,1781563850000,-151.0,0.00019178,2]
[425178889,1781563850000,-151.0,0.00019106,2]
[425178892,1781563850000,-151.0,0.00019108,2]
[425178893,1781563850000,-174.80266131,0.00019163,2]
[425178890,1781563850000,-2080.17592889,0.00019106,2]
[425178891,1781563850000,-174.80266116,0.00019108,2]
[425178896,1781563850000,-151.0,0.00019178,2]
[425178897,1781563850000,-151.0,0.00019178,2]
[425178898,1781563850000,-151.0,0.00019178,2]
[425178895,1781563850000,-160.93281423,0.00019178,2]
[425178899,1781563850000,-201.497702,0.00019178,2]
[425178900,1781563850000,-151.0,0.00019178,2]
[425178888,1781563850000,-181.08010149,0.00019106,2]
[425178901,1781563850000,-151.0,0.00019178,2]
[425178913,1781563850000,-151.0,0.00019178,2]
[425178912,1781563850000,-151.0,0.00019178,2]
[425178911,1781563850000,-151.0,0.00019178,2]
[425178902,1781563850000,-151.0,0.00019178,2]
[425178907,1781563850000,-151.0,0.00019178,2]
[425178908,1781563850000,-151.0,0.00019178,2]
[425178909,1781563850000,-151.0,0.00019178,2]
[425178905,1781563850000,-151.0,0.00019178,2]
[425178906,1781563850000,-151.0,0.00019178,2]
[425178904,1781563850000,-151.0,0.00019178,2]
[425178903,1781563850000,-151.0,0.00019178,2]
[425178910,1781563850000,-151.0,0.00019178,2]
[425178979,1781563851000,-282.0,0.0002,2]
[425178975,1781563851000,-1248.0,0.0002,2]
[425178980,1781563851000,-164.0,0.0002,2]
[425178981,1781563851000,-500.0,0.0002017,2]
[425178972,1781563851000,-784.43422086,0.0002,2]
[425178977,1781563851000,-2400.052696,0.0002,2]
[425178973,1781563851000,-311.139121,0.0002,10]
[425178974,1781563851000,-500.0,0.0002,2]
[425178976,1781563851000,-195.042,0.0002,2]
[425178971,1781563851000,-214.11,0.0002,2]
[425178978,1781563851000,-1066.0,0.0002,2]
[425178988,1781563851000,-2236.95670847,0.00020202,2]
[425178986,1781563851000,-194.72792766,0.00020202,2]
[425178982,1781563851000,-784.43422086,0.000202,2]
[425178984,1781563851000,-151.0,0.00020202,2]
[425178985,1781563851000,-1112.1608346,0.00020202,2]
[425178989,1781563851000,-2000.0,0.00020219,7]
[425178990,1781563851000,-205.12137835,0.00020245,3]
[425178992,1781563851000,-784.43422086,0.000204,2]
[425178991,1781563851000,-1421.2,0.00020381,2]
[425178987,1781563851000,-165.55515187,0.00020202,2]
[425178994,1781563851000,-152.0,0.00020513,3]
[425178966,1781563851000,-224.0,0.0002,2]
[425178983,1781563851000,-200.0,0.00020202,2]
[425178969,1781563851000,-620.0,0.0002,2]
[425178957,1781563851000,-2019.11,0.000199,7]
[425178965,1781563851000,-605.0,0.0002,2]
[425179004,1781563851000,-150.0,0.00020713,2]
[425178948,1781563851000,-151.0,0.00019654,2]
[425178945,1781563851000,-1112.1608346,0.00019654,2]
[425178943,1781563851000,-8504.65956972,0.000195,2]
[425178946,1781563851000,-151.0,0.00019654,2]
[425178947,1781563851000,-187.78006524,0.00019654,2]
[425178944,1781563851000,-200.0,0.00019654,2]
[425178949,1781563851000,-2157.14243826,0.00019654,2]
[425178950,1781563851000,-8504.65956972,0.000197,2]
[425178951,1781563851000,-300.0,0.000197,7]
[425178952,1781563851000,-3000.0,0.000197,2]
[425178967,1781563851000,-5790.0,0.0002,2]
[425178953,1781563851000,-5000.0,0.00019748,3]
[425178955,1781563851000,-513504.40442466,0.000198,3]
[425178954,1781563851000,-5241094.42447928,0.000198,3]
[425178958,1781563851000,-16200.0,0.000199,7]
[425178959,1781563851000,-203.65936251,0.00019927,2]
[425178960,1781563851000,-3500.6606119,0.0002,2]
[425178962,1781563851000,-3000.33749802,0.0002,7]
[425178970,1781563851000,-400.0,0.0002,2]
[425178963,1781563851000,-2214.0,0.0002,2]
[425178961,1781563851000,-300.000001,0.0002,2]
[425178964,1781563851000,-159.0,0.0002,2]
[425178968,1781563851000,-166.0,0.0002,2]
[425178956,1781563851000,-5016.53462597,0.000199,3]
[425178995,1781563851000,-3558.0,0.00020566,2]
[425178993,1781563851000,-200.0,0.00020513,3]
[425179002,1781563851000,-784.43422086,0.000206,2]
[425179028,1781563851000,-282.0,0.00021,2]
[425179032,1781563851000,-599.60298507,0.00021297,2]
[425179034,1781563851000,-721.12765534,0.00021297,2]
[425179030,1781563851000,-285.12,0.00021205,2]
[425179036,1781563851000,-151.0,0.00021298,2]
[425179031,1781563851000,-203.65936251,0.00021296,2]
[425179029,1781563851000,-869.3812221,0.000212,2]
[425179035,1781563851000,-200.0,0.00021298,2]
[425179037,1781563851000,-1112.1608346,0.00021298,2]
[425179033,1781563851000,-151.0,0.00021297,2]
[425179039,1781563851000,-2405.55389863,0.00021298,2]
[425179027,1781563851000,-2400.052696,0.00021,2]
[425179041,1781563851000,-869.3812221,0.000214,2]
[425179042,1781563851000,-180.0,0.00021506,2]
[425179045,1781563851000,-151.0,0.00021738,30]
[425179040,1781563851000,-249.0,0.00021337,2]
[425179047,1781563851000,-200.0,0.00021846,2]
[425179043,1781563851000,-190.56126992,0.00021573,2]
[425179046,1781563851000,-382.0,0.00021762,2]
[425179049,1781563851000,-217.15233878,0.00021846,2]
[425179048,1781563851000,-1112.1608346,0.00021846,2]
[425179050,1781563851000,-2494.55939288,0.00021846,2]
[425179051,1781563851000,-2000.0,0.00021849,7]
[425178996,1781563851000,-383.0,0.00020566,2]
[425179044,1781563851000,-869.3812221,0.000216,2]
[425179024,1781563851000,-869.3812221,0.00021,2]
[425179038,1781563851000,-209.40437684,0.00021298,2]
[425179021,1781563851000,-620.0,0.00021,2]
[425178999,1781563851000,-150.0,0.00020566,2]
[425179023,1781563851000,-500.0,0.00021,2]
[425179000,1781563851000,-934.0,0.00020566,2]
[425178998,1781563851000,-1359.0,0.00020566,2]
[425178997,1781563851000,-1275.0,0.00020566,2]
[425179003,1781563851000,-1763.03,0.000206,2]
[425179001,1781563851000,-419.0,0.00020566,2]
[425179005,1781563851000,-150.0,0.00020713,2]
[425179007,1781563851000,-151.0,0.0002075,2]
[425179008,1781563851000,-1112.1608346,0.0002075,2]
[425179009,1781563851000,-201.93286098,0.0002075,2]
[425179015,1781563851000,-160.0,0.00021,7]
[425179011,1781563851000,-784.43422086,0.000208,2]
[425179006,1781563851000,-200.0,0.0002075,2]
[425179014,1781563851000,-1241.23789943,0.00021,7]
[425179020,1781563851000,-166.0,0.00021,2]
[425179026,1781563851000,-500.0,0.00021,2]
[425179025,1781563851000,-500.0,0.00021,3]
[425179018,1781563851000,-605.0,0.00021,2]
[425179019,1781563851000,-224.0,0.00021,2]
[425179022,1781563851000,-500.0,0.00021,3]
[425179017,1781563851000,-159.0,0.00021,2]
[425179012,1781563851000,-200.0,0.00021,2]
[425179013,1781563851000,-8736.37280775,0.00021,2]
[425179010,1781563851000,-2319.72410669,0.0002075,2]
[425179016,1781563851000,-2214.0,0.00021,2]
[425179089,1781563852000,-250.0,0.00022707,2]
[425179086,1781563852000,-500.0,0.0002257,2]
[425179087,1781563852000,-573.0,0.00022632,5]
[425179091,1781563852000,-1112.1608346,0.00022942,2]
[425179090,1781563852000,-200.0,0.00022942,2]
[425179084,1781563852000,-1347.89,0.00022466,2]
[425179088,1781563852000,-203.65936251,0.00022665,2]
[425179083,1781563852000,-1856.71,0.00022466,2]
[425179093,1781563852000,-2682.57183977,0.00022942,2]
[425179081,1781563852000,-2006.12,0.00022466,2]
[425179095,1781563852000,-159.0,0.00023,2]
[425179085,1781563852000,-275.592353,0.00022497,7]
[425179098,1781563852000,-166.0,0.00023,2]
[425179114,1781563852000,-1175.96313014,0.000235,2]
[425179096,1781563852000,-605.0,0.00023,2]
[425179094,1781563852000,-2214.0,0.00023,2]
[425179104,1781563852000,-500.0,0.00023247,2]
[425179097,1781563852000,-224.0,0.00023,2]
[425179099,1781563852000,-620.0,0.00023,2]
[425179103,1781563852000,-1763.03,0.000232,7]
[425179102,1781563852000,-298.5,0.00023117,2]
[425179101,1781563852000,-282.0,0.00023,2]
[425179100,1781563852000,-2400.052696,0.00023,2]
[425179107,1781563852000,-153.13,0.00023288,2]
[425179112,1781563852000,-242.15909246,0.0002349,2]
[425179106,1781563852000,-160.0,0.00023287,2]
[425179082,1781563852000,-1845.14,0.00022466,2]
[425179105,1781563852000,-150.0,0.0002326,21]
[425179092,1781563852000,-233.5188934,0.00022942,2]
[425179054,1781563852000,-5000.0,0.00021918,2]
[425179079,1781563852000,-435.24473279,0.00022407,2]
[425179052,1781563852000,-869.3812221,0.000219,2]
[425179053,1781563852000,-500.0,0.00021913,2]
[425179056,1781563852000,-150.0,0.00021918,2]
[425179055,1781563852000,-172.0,0.00021918,2]
[425179057,1781563852000,-8000.0,0.00022,10]
[425179059,1781563852000,-500.0,0.00022,3]
[425179061,1781563852000,-817.05794618,0.00022,7]
[425179058,1781563852000,-500.0,0.00022,3]
[425179060,1781563852000,-500.0,0.00022,3]
[425179062,1781563852000,-2214.0,0.00022,2]
[425179113,1781563852000,-2781.82699784,0.0002349,2]
[425179065,1781563852000,-224.0,0.00022,2]
[425179063,1781563852000,-159.0,0.00022,2]
[425179068,1781563852000,-450.0,0.00022,2]
[425179064,1781563852000,-605.0,0.00022,2]
[425179067,1781563852000,-620.0,0.00022,2]
[425179066,1781563852000,-166.0,0.00022,2]
[425179070,1781563852000,-282.0,0.00022,2]
[425179077,1781563852000,-2586.85809042,0.00022394,2]
[425179080,1781563852000,-435.24473279,0.00022407,2]
[425179074,1781563852000,-200.0,0.00022394,2]
[425179075,1781563852000,-1112.1608346,0.00022394,2]
[425179073,1781563852000,-1421.2,0.00022353,2]
[425179076,1781563852000,-225.18697532,0.00022394,2]
[425179069,1781563852000,-2400.052696,0.00022,2]
[425179071,1781563852000,-1958.1,0.00022,2]
[425179072,1781563852000,-529.38622754,0.000221,7]
[425179078,1781563852000,-435.24473282,0.00022407,2]
[425179108,1781563852000,-150.0,0.00023288,2]
[425179164,1781563852000,-212.696934,0.00024658,2]
[425179109,1781563852000,-2000.0,0.00023479,7]
[425179149,1781563852000,-500.0,0.00024356,2]
[425179147,1781563852000,-500.0,0.00024303,2]
[425179152,1781563852000,-5921.13880256,0.00024557,5]
[425179154,1781563852000,-260.4103811,0.00024586,2]
[425179155,1781563852000,-2991.49051684,0.00024586,2]
[425179151,1781563852000,-169.14212211,0.0002455,15]
[425179150,1781563852000,-500.0,0.00024365,2]
[425179146,1781563852000,-500.0,0.00024303,2]
[425179148,1781563852000,-1421.2,0.00024324,2]
[425179156,1781563852000,-1000.0,0.00024658,2]
[425179153,1781563852000,-1112.1608346,0.00024586,2]
[425179157,1781563852000,-558.44,0.00024658,2]
[425179158,1781563852000,-212.696934,0.00024658,2]
[425179161,1781563852000,-212.696934,0.00024658,2]
[425179166,1781563852000,-212.696934,0.00024658,2]
[425179165,1781563852000,-212.696934,0.00024658,2]
[425179160,1781563852000,-212.696934,0.00024658,2]
[425179163,1781563852000,-212.696934,0.00024658,2]
[425179168,1781563852000,-212.696934,0.00024658,2]
[425179159,1781563852000,-212.696934,0.00024658,2]
[425179167,1781563852000,-212.696934,0.00024658,2]
[425179169,1781563852000,-212.696934,0.00024658,2]
[425179162,1781563852000,-212.696934,0.00024658,2]
[425179170,1781563852000,-212.696934,0.00024658,2]
[425179173,1781563852000,-212.696934,0.00024658,2]
[425179172,1781563852000,-212.696934,0.00024658,2]
[425179171,1781563852000,-212.696934,0.00024658,2]
[425179144,1781563852000,-2884.75459676,0.00024038,2]
[425179145,1781563852000,-985.76,0.00024174,2]
[425179110,1781563852000,-200.0,0.0002349,2]
[425179134,1781563852000,-2400.052696,0.00024,2]
[425179111,1781563852000,-1112.1608346,0.0002349,2]
[425179115,1781563852000,-250.0,0.00023562,5]
[425179116,1781563852000,-3558.0,0.00023566,2]
[425179117,1781563852000,-232.976,0.00023566,2]
[425179118,1781563852000,-1359.0,0.00023566,2]
[425179120,1781563852000,-419.0,0.00023566,2]
[425179119,1781563852000,-934.0,0.00023566,2]
[425179140,1781563852000,-747.80937859,0.00024036,2]
[425179121,1781563852000,-500.0,0.00023595,2]
[425179129,1781563852000,-610.05539555,0.00024,2]
[425179123,1781563852000,-500.0,0.00023655,2]
[425179127,1781563852000,-2219.0,0.00024,2]
[425179126,1781563852000,-500.0,0.00023944,2]
[425179124,1781563852000,-764.0,0.0002372,5]
[425179122,1781563852000,-500.0,0.00023595,2]
[425179130,1781563852000,-237.64031093,0.00024,2]
[425179125,1781563852000,-160.0,0.00023735,3]
[425179135,1781563852000,-296.80448742,0.00024,2]
[425179139,1781563852000,-151.0,0.00024036,2]
[425179138,1781563852000,-621.78829552,0.00024036,2]
[425179141,1781563852000,-200.0,0.00024038,2]
[425179136,1781563852000,-150.0,0.00024,2]
[425179137,1781563852000,-203.65936251,0.00024034,2]
[425179143,1781563852000,-251.11897888,0.00024038,2]
[425179142,1781563852000,-1112.1608346,0.00024038,2]
[425179131,1781563852000,-169.0,0.00024,2]
[425179132,1781563852000,-629.56966104,0.00024,2]
[425179128,1781563852000,-175.59966885,0.00024,2]
[425179133,1781563852000,-500.0,0.00024,2]
[425179213,1781563853000,-698.492968,0.00024658,2]
[425179217,1781563853000,-698.492968,0.00024658,2]
[425179216,1781563853000,-151.0,0.00024658,2]
[425179214,1781563853000,-151.0,0.00024658,2]
[425179211,1781563853000,-151.0,0.00024658,2]
[425179202,1781563853000,-698.492968,0.00024658,2]
[425179215,1781563853000,-698.492968,0.00024658,2]
[425179212,1781563853000,-151.0,0.00024658,2]
[425179209,1781563853000,-151.0,0.00024658,2]
[425179210,1781563853000,-698.492968,0.00024658,2]
[425179207,1781563853000,-698.492968,0.00024658,2]
[425179208,1781563853000,-698.492968,0.00024658,2]
[425179219,1781563853000,-698.492968,0.00024658,2]
[425179232,1781563853000,-151.0,0.00024658,2]
[425179220,1781563853000,-151.0,0.00024658,2]
[425179221,1781563853000,-698.492968,0.00024658,2]
[425179229,1781563853000,-151.0,0.00024658,2]
[425179230,1781563853000,-151.0,0.00024658,2]
[425179231,1781563853000,-232.414142,0.00024658,2]
[425179222,1781563853000,-151.0,0.00024658,2]
[425179223,1781563853000,-151.0,0.00024658,2]
[425179224,1781563853000,-698.492968,0.00024658,2]
[425179226,1781563853000,-698.492968,0.00024658,2]
[425179225,1781563853000,-151.0,0.00024658,2]
[425179227,1781563853000,-151.0,0.00024658,2]
[425179228,1781563853000,-698.492978,0.00024658,2]
[425179205,1781563853000,-698.492968,0.00024658,2]
[425179218,1781563853000,-151.0,0.00024658,2]
[425179199,1781563853000,-698.492968,0.00024658,2]
[425179183,1781563853000,-201.788527,0.00024658,2]
[425179201,1781563853000,-698.492968,0.00024658,2]
[425179236,1781563853000,-151.0,0.00024658,2]
[425179182,1781563853000,-201.788527,0.00024658,2]
[425179174,1781563853000,-212.696934,0.00024658,2]
[425179175,1781563853000,-212.696934,0.00024658,2]
[425179177,1781563853000,-212.696933,0.00024658,2]
[425179176,1781563853000,-212.696934,0.00024658,2]
[425179178,1781563853000,-201.788527,0.00024658,2]
[425179180,1781563853000,-201.788527,0.00024658,2]
[425179179,1781563853000,-201.788527,0.00024658,2]
[425179184,1781563853000,-201.788527,0.00024658,2]
[425179193,1781563853000,-201.788527,0.00024658,2]
[425179192,1781563853000,-201.788527,0.00024658,2]
[425179185,1781563853000,-201.788527,0.00024658,2]
[425179194,1781563853000,-201.788527,0.00024658,2]
[425179186,1781563853000,-201.788527,0.00024658,2]
[425179191,1781563853000,-201.788527,0.00024658,2]
[425179190,1781563853000,-201.788527,0.00024658,2]
[425179187,1781563853000,-201.788527,0.00024658,2]
[425179188,1781563853000,-201.788527,0.00024658,2]
[425179189,1781563853000,-201.788527,0.00024658,2]
[425179200,1781563853000,-698.492968,0.00024658,2]
[425179196,1781563853000,-201.788527,0.00024658,2]
[425179204,1781563853000,-698.492968,0.00024658,2]
[425179206,1781563853000,-698.492968,0.00024658,2]
[425179195,1781563853000,-201.788527,0.00024658,2]
[425179203,1781563853000,-698.492968,0.00024658,2]
[425179198,1781563853000,-698.492968,0.00024658,2]
[425179197,1781563853000,-201.78852,0.00024658,2]
[425179181,1781563853000,-201.788527,0.00024658,2]
[425179243,1781563853000,-151.0,0.00024658,2]
[425179233,1781563853000,-151.0,0.00024658,2]
[425179269,1781563853000,-237.43,0.00025,2]
[425179271,1781563853000,-237.43,0.00025,2]
[425179281,1781563853000,-160.0,0.00025209,3]
[425179270,1781563853000,-237.43,0.00025,2]
[425179272,1781563853000,-237.43,0.00025,2]
[425179274,1781563853000,-500.0,0.00025032,2]
[425179273,1781563853000,-237.43,0.00025,2]
[425179275,1781563853000,-206.0,0.00025073,2]
[425179276,1781563853000,-500.0,0.00025096,2]
[425179277,1781563853000,-1682.59,0.000251,14]
[425179278,1781563853000,-2000.0,0.0002511,7]
[425179279,1781563853000,-270.0455652,0.00025134,2]
[425179280,1781563853000,-2327.0,0.00025209,3]
[425179283,1781563853000,-155.75318106,0.00025397,2]
[425179284,1781563853000,-222.45683364,0.00025397,2]
[425179282,1781563853000,-1187.91,0.00025245,2]
[425179293,1781563853000,-5528.0,0.000258,3]
[425179291,1781563853000,-985.76,0.00025786,2]
[425179288,1781563853000,-285.12,0.00025644,2]
[425179285,1781563853000,-500.0,0.00025403,2]
[425179286,1781563853000,-203.65936251,0.00025403,2]
[425179287,1781563853000,-1187.91,0.00025538,2]
[425179290,1781563853000,-280.03725111,0.00025682,2]
[425179292,1781563853000,-701.65,0.00025786,2]
[425179289,1781563853000,-292.0,0.00025653,3]
[425179295,1781563853000,-1187.91,0.00025832,2]
[425179238,1781563853000,-151.0,0.00024658,2]
[425179264,1781563853000,-237.43,0.00025,2]
[425179266,1781563853000,-237.43,0.00025,2]
[425179294,1781563853000,-207.45,0.00025812,2]
[425179260,1781563853000,-910873.73770344,0.00025,2]
[425179267,1781563853000,-237.43,0.00025,2]
[425179234,1781563853000,-151.0,0.00024658,2]
[425179235,1781563853000,-151.0,0.00024658,2]
[425179239,1781563853000,-151.0,0.00024658,2]
[425179237,1781563853000,-151.0,0.00024658,2]
[425179242,1781563853000,-151.0,0.00024658,2]
[425179241,1781563853000,-151.0,0.00024658,2]
[425179256,1781563853000,-2273.0,0.0002492,3]
[425179245,1781563853000,-150.0,0.00024658,2]
[425179255,1781563853000,-80461.0,0.000249,2]
[425179246,1781563853000,-1187.91,0.00024658,2]
[425179244,1781563853000,-301.559945,0.00024658,2]
[425179247,1781563853000,-582.57994449,0.00024658,2]
[425179248,1781563853000,-500.0,0.00024663,2]
[425179240,1781563853000,-151.0,0.00024658,2]
[425179251,1781563853000,-42169.11,0.000248,2]
[425179253,1781563853000,-2327.0,0.00024889,3]
[425179262,1781563853000,-41027.98923796,0.00025,7]
[425179265,1781563853000,-237.43,0.00025,2]
[425179258,1781563853000,-1187.91,0.00024951,2]
[425179268,1781563853000,-237.43,0.00025,2]
[425179263,1781563853000,-173.0,0.00025,7]
[425179261,1781563853000,-848.03299203,0.00025,2]
[425179257,1781563853000,-160.0,0.0002492,3]
[425179254,1781563853000,-1763.03,0.000249,7]
[425179249,1781563853000,-1958.1,0.00024696,7]
[425179252,1781563853000,-955.0,0.00024808,5]
[425179250,1781563853000,-5000.0,0.00024748,10]
[425179259,1781563853000,-4000.0,0.00025,2]
[425179337,1781563854000,-151.0,0.00027,7]
[425179342,1781563854000,-151.0,0.00027,7]
[425179333,1781563854000,-775.4783256,0.00026775,2]
[425179340,1781563854000,-151.0,0.00027,7]
[425179336,1781563854000,-151.0,0.00027,7]
[425179332,1781563854000,-151.0,0.00026775,2]
[425179326,1781563854000,-5667.67,0.00026667,3]
[425179327,1781563854000,-5528.0,0.000267,5]
[425179325,1781563854000,-160.0,0.00026656,3]
[425179335,1781563854000,-1358.80728808,0.00026908,4]
[425179331,1781563854000,-644.79446245,0.00026775,2]
[425179328,1781563854000,-1187.91,0.00026712,2]
[425179343,1781563854000,-151.0,0.00027,7]
[425179353,1781563854000,-151.0,0.00027,7]
[425179339,1781563854000,-151.0,0.00027,7]
[425179341,1781563854000,-151.0,0.00027,7]
[425179346,1781563854000,-151.0,0.00027,7]
[425179352,1781563854000,-151.0,0.00027,7]
[425179345,1781563854000,-151.0,0.00027,7]
[425179347,1781563854000,-151.0,0.00027,7]
[425179350,1781563854000,-151.0,0.00027,7]
[425179344,1781563854000,-151.0,0.00027,7]
[425179348,1781563854000,-151.0,0.00027,7]
[425179351,1781563854000,-151.0,0.00027,7]
[425179349,1781563854000,-151.0,0.00027,7]
[425179324,1781563854000,-160.0,0.00026631,3]
[425179334,1781563854000,-214.23993063,0.00026778,2]
[425179323,1781563854000,-500.0,0.00026624,2]
[425179309,1781563854000,-290.3986294,0.0002623,2]
[425179321,1781563854000,-419.0,0.00026566,2]
[425179305,1781563854000,-1187.91,0.00026125,2]
[425179297,1781563854000,-173.0,0.0002589,7]
[425179296,1781563854000,-500.0,0.00025849,2]
[425179298,1781563854000,-955.0,0.00025896,5]
[425179299,1781563854000,-27485.04538076,0.00026,10]
[425179300,1781563854000,-550.0,0.00026,2]
[425179301,1781563854000,-162.25191701,0.00026027,3]
[425179303,1781563854000,-150.0,0.00026028,2]
[425179302,1781563854000,-153.13,0.00026027,10]
[425179304,1781563854000,-170.0,0.0002606,3]
[425179307,1781563854000,-285.0,0.00026194,7]
[425179308,1781563854000,-42169.11,0.000262,2]
[425179322,1781563854000,-42169.11,0.000266,2]
[425179306,1781563854000,-500.0,0.00026165,2]
[425179314,1781563854000,-222.45683364,0.00026397,2]
[425179310,1781563854000,-1421.2,0.00026296,2]
[425179316,1781563854000,-1763.03,0.000264,7]
[425179318,1781563854000,-3558.0,0.00026566,2]
[425179311,1781563854000,-160.0,0.00026362,3]
[425179315,1781563854000,-292.4239277,0.00026397,2]
[425179313,1781563854000,-277.62520472,0.00026397,2]
[425179312,1781563854000,-155.75318106,0.00026397,2]
[425179320,1781563854000,-934.0,0.00026566,2]
[425179329,1781563854000,-2000.0,0.0002674,7]
[425179330,1781563854000,-203.65936251,0.00026772,2]
[425179319,1781563854000,-1359.0,0.00026566,2]
[425179317,1781563854000,-1187.91,0.00026419,2]
[425179354,1781563854000,-151.0,0.00027,7]
[425179338,1781563854000,-151.0,0.00027,7]
[425179358,1781563854000,-151.0,0.00027,7]
[425179380,1781563854000,-151.0,0.00027,7]
[425179386,1781563854000,-151.0,0.00027,7]
[425179390,1781563854000,-151.0,0.00027,7]
[425179392,1781563854000,-151.0,0.00027,7]
[425179402,1781563854000,-151.0,0.00027,7]
[425179391,1781563854000,-151.0,0.00027,7]
[425179393,1781563854000,-151.0,0.00027,7]
[425179397,1781563854000,-151.0,0.00027,7]
[425179401,1781563854000,-202.88,0.00027,7]
[425179400,1781563854000,-151.0,0.00027,7]
[425179399,1781563854000,-151.0,0.00027,7]
[425179395,1781563854000,-151.0,0.00027,7]
[425179398,1781563854000,-151.0,0.00027,7]
[425179394,1781563854000,-151.0,0.00027,7]
[425179396,1781563854000,-151.0,0.00027,7]
[425179403,1781563854000,-151.0,0.00027,7]
[425179406,1781563854000,-151.0,0.00027,7]
[425179405,1781563854000,-151.0,0.00027,7]
[425179408,1781563854000,-151.0,0.00027,7]
[425179410,1781563854000,-151.0,0.00027,7]
[425179404,1781563854000,-151.0,0.00027,7]
[425179412,1781563854000,-151.0,0.00027,7]
[425179407,1781563854000,-151.0,0.00027,7]
[425179414,1781563854000,-151.0,0.00027,7]
[425179409,1781563854000,-151.0,0.00027,7]
[425179411,1781563854000,-151.0,0.00027,7]
[425179364,1781563854000,-151.0,0.00027,7]
[425179387,1781563854000,-151.0,0.00027,7]
[425179389,1781563854000,-151.0,0.00027,7]
[425179413,1781563854000,-151.0,0.00027,7]
[425179384,1781563854000,-151.0,0.00027,7]
[425179385,1781563854000,-151.0,0.00027,7]
[425179363,1781563854000,-151.0,0.00027,7]
[425179356,1781563854000,-151.0,0.00027,7]
[425179355,1781563854000,-151.0,0.00027,7]
[425179360,1781563854000,-151.0,0.00027,7]
[425179357,1781563854000,-151.0,0.00027,7]
[425179359,1781563854000,-151.0,0.00027,7]
[425179361,1781563854000,-151.0,0.00027,7]
[425179362,1781563854000,-151.0,0.00027,7]
[425179367,1781563854000,-151.0,0.00027,7]
[425179378,1781563854000,-151.0,0.00027,7]
[425179366,1781563854000,-151.0,0.00027,7]
[425179377,1781563854000,-151.0,0.00027,7]
[425179365,1781563854000,-151.0,0.00027,7]
[425179368,1781563854000,-151.0,0.00027,7]
[425179370,1781563854000,-151.0,0.00027,7]
[425179379,1781563854000,-151.0,0.00027,7]
[425179382,1781563854000,-151.0,0.00027,7]
[425179388,1781563854000,-151.0,0.00027,7]
[425179381,1781563854000,-151.0,0.00027,7]
[425179376,1781563854000,-151.0,0.00027,7]
[425179383,1781563854000,-151.0,0.00027,7]
[425179374,1781563854000,-151.0,0.00027,7]
[425179371,1781563854000,-151.0,0.00027,7]
[425179373,1781563854000,-151.0,0.00027,7]
[425179369,1781563854000,-151.0,0.00027,7]
[425179372,1781563854000,-151.0,0.00027,7]
[425179375,1781563854000,-151.0,0.00027,7]